[Event "Live Chess"]
[Site "Chess.com"]
[Date "2023.05.20"]
[Round "-"]
[White "nigelst"]
[Black "OceanFloater"]
[Result "1-0"]
[WhiteElo "1832"]
[BlackElo "1007"]
[TimeControl "300"]
[EndTime "13:44:49 PDT"]
[Termination "nigelst won by checkmate"]

1. e4 {[%clk 0:04:57.3]} 1... c6 {[%clk 0:04:58.4]} 2. d4 {[%clk 0:04:55.6]}
2... d5 {[%clk 0:04:58]} 3. exd5 {[%clk 0:04:53.9]} 3... cxd5 {[%clk 0:04:57.5]}
4. Bd3 {[%clk 0:04:52.8]} 4... Nf6 {[%clk 0:04:53.9]} 5. c3 {[%clk 0:04:51.4]}
5... Bg4 {[%clk 0:04:48.3]} 6. Qb3 {[%clk 0:04:48.1]} 6... Qc7 {[%clk
0:04:40.9]} 7. Ne2 {[%clk 0:04:42.9]} 7... e6 {[%clk 0:04:36.6]} 8. Bf4 {[%clk
0:04:41.2]} 8... Bd6 {[%clk 0:04:29]} 9. Bxd6 {[%clk 0:04:39.5]} 9... Qxd6
{[%clk 0:04:27.8]} 10. Qxb7 {[%clk 0:04:37.5]} 10... Bxe2 {[%clk 0:04:22.6]} 11.
Bxe2 {[%clk 0:04:34.6]} 11... O-O {[%clk 0:04:03.9]} 12. Qxa8 {[%clk 0:04:31.3]}
12... Nc6 {[%clk 0:04:02.5]} 13. Qb7 {[%clk 0:04:28.6]} 13... Rb8 {[%clk
0:03:56.3]} 14. Qa6 {[%clk 0:04:27.1]} 14... Ne4 {[%clk 0:03:38]} 15. O-O {[%clk
0:04:07.4]} 15... Rb6 {[%clk 0:03:27.1]} 16. Qd3 {[%clk 0:04:00]} 16... Qf4
{[%clk 0:03:20.2]} 17. Na3 {[%clk 0:03:36.8]} 17... Rxb2 {[%clk 0:03:12.8]} 18.
Rab1 {[%clk 0:03:24.8]} 18... Rxa2 {[%clk 0:03:07.8]} 19. Nb5 {[%clk 0:03:16.4]}
19... Nd2 {[%clk 0:03:02.7]} 20. g3 {[%clk 0:02:50]} 20... Qe4 {[%clk
0:02:35.4]} 21. Qxe4 {[%clk 0:02:47.4]} 21... dxe4 {[%clk 0:02:33.3]} 22. Ra1
{[%clk 0:02:40.2]} 22... Nxf1 {[%clk 0:02:29.2]} 23. Rxa2 {[%clk 0:02:39.1]}
23... e3 {[%clk 0:02:19.6]} 24. Kxf1 {[%clk 0:02:36.9]} 24... exf2 {[%clk
0:02:17.6]} 25. Kxf2 {[%clk 0:02:36.1]} 25... h6 {[%clk 0:02:15.9]} 26. Nxa7
{[%clk 0:02:34.6]} 26... Nxa7 {[%clk 0:02:14.8]} 27. Rxa7 {[%clk 0:02:32.7]}
27... Kh7 {[%clk 0:02:14.4]} 28. Rxf7 {[%clk 0:02:31.4]} 28... Kg6 {[%clk
0:02:14.1]} 29. Re7 {[%clk 0:02:28.7]} 29... Kf6 {[%clk 0:02:13.1]} 30. Ra7
{[%clk 0:02:27.6]} 30... g6 {[%clk 0:02:11.5]} 31. c4 {[%clk 0:02:26]} 31... g5
{[%clk 0:02:10.3]} 32. c5 {[%clk 0:02:25.2]} 32... Kf5 {[%clk 0:02:07.9]} 33. c6
{[%clk 0:02:24.4]} 33... Ke4 {[%clk 0:02:06.1]} 34. c7 {[%clk 0:02:23.7]} 34...
Kxd4 {[%clk 0:02:05.3]} 35. c8=Q {[%clk 0:02:22.5]} 35... e5 {[%clk 0:02:05.1]}
36. Ra4+ {[%clk 0:02:18.5]} 36... Kd5 {[%clk 0:02:03.9]} 37. Qd7+ {[%clk
0:02:15.2]} 37... Kc5 {[%clk 0:02:02.7]} 38. Rc4+ {[%clk 0:02:09.6]} 38... Kb6
{[%clk 0:01:59.9]} 39. Qc6+ {[%clk 0:02:03]} 39... Ka5 {[%clk 0:01:57.8]} 40.
Ra4# {[%clk 0:02:01.6]} 1-0

[Event "Live Chess"]
[Site "Chess.com"]
[Date "2023.05.20"]
[Round "-"]
[White "ItsNot_Jasper"]
[Black "MartaMost"]
[Result "0-1"]
[WhiteElo "1321"]
[BlackElo "1195"]
[TimeControl "300"]
[EndTime "13:44:55 PDT"]
[Termination "MartaMost won - game abandoned"]

1. d4 {[%clk 0:04:58.9]} 1... d5 {[%clk 0:04:54.7]} 2. c4 {[%clk 0:04:57.8]}
2... dxc4 {[%clk 0:04:51.7]} 3. e3 {[%clk 0:04:56.2]} 3... Bf5 {[%clk
0:04:48.5]} 4. Bxc4 {[%clk 0:04:54]} 4... Bxb1 {[%clk 0:04:45.3]} 5. Rxb1 {[%clk
0:04:52.9]} 5... c6 {[%clk 0:04:40.7]} 6. Qb3 {[%clk 0:04:51.5]} 6... e6 {[%clk
0:04:36.6]} 7. Qxb7 {[%clk 0:04:50.2]} 7... Qa5+ {[%clk 0:04:32]} 8. Bd2 {[%clk
0:04:45.5]} 8... Qg5 {[%clk 0:03:56.5]} 9. Qxa8 {[%clk 0:04:39.2]} 9... Qxg2
{[%clk 0:03:53.2]} 10. Qxb8+ {[%clk 0:04:38.5]} 10... Ke7 {[%clk 0:03:49.6]} 11.
Bb4+ {[%clk 0:04:37.1]} 11... Kf6 {[%clk 0:03:45.5]} 0-1

[Event "Live Chess"]
[Site "Chess.com"]
[Date "2023.05.20"]
[Round "-"]
[White "Greenbecker"]
[Black "smoggyrabbit"]
[Result "1-0"]
[WhiteElo "1654"]
[BlackElo "1672"]
[TimeControl "300"]
[EndTime "13:44:58 PDT"]
[Termination "Greenbecker won on time"]

1. e4 {[%clk 0:04:57.6]} 1... e6 {[%clk 0:04:58.5]} 2. d4 {[%clk 0:04:55.9]}
2... d5 {[%clk 0:04:57.1]} 3. exd5 {[%clk 0:04:55.2]} 3... exd5 {[%clk
0:04:55.2]} 4. Nf3 {[%clk 0:04:54.8]} 4... Bd6 {[%clk 0:04:53]} 5. Bd3 {[%clk
0:04:54.2]} 5... c6 {[%clk 0:04:52.1]} 6. O-O {[%clk 0:04:53.4]} 6... Ne7 {[%clk
0:04:50.3]} 7. Re1 {[%clk 0:04:52.4]} 7... O-O {[%clk 0:04:47.7]} 8. Nc3 {[%clk
0:04:51.1]} 8... Bf5 {[%clk 0:04:45.8]} 9. Bg5 {[%clk 0:04:46.2]} 9... f6 {[%clk
0:04:44.7]} 10. Bh4 {[%clk 0:04:43.9]} 10... Bxd3 {[%clk 0:04:34.3]} 11. Qxd3
{[%clk 0:04:43]} 11... Na6 {[%clk 0:04:32.5]} 12. a3 {[%clk 0:04:39.3]} 12...
Qd7 {[%clk 0:04:29.7]} 13. Re2 {[%clk 0:04:36]} 13... Nf5 {[%clk 0:04:28]} 14.
Bg3 {[%clk 0:04:32.6]} 14... Nxg3 {[%clk 0:04:26]} 15. hxg3 {[%clk 0:04:31.8]}
15... Rfe8 {[%clk 0:04:24.9]} 16. Rae1 {[%clk 0:04:29.5]} 16... Rxe2 {[%clk
0:04:23.4]} 17. Rxe2 {[%clk 0:04:28.2]} 17... Re8 {[%clk 0:04:21.7]} 18. Rxe8+
{[%clk 0:04:26.4]} 18... Qxe8 {[%clk 0:04:20.2]} 19. Qe3 {[%clk 0:04:24.4]}
19... Qxe3 {[%clk 0:04:18]} 20. fxe3 {[%clk 0:04:23.5]} 20... Bxg3 {[%clk
0:04:16.5]} 21. Na4 {[%clk 0:04:19.3]} 21... Bd6 {[%clk 0:04:09.7]} 22. Nc3
{[%clk 0:04:17.2]} 22... Kf7 {[%clk 0:04:07.5]} 23. Nh4 {[%clk 0:04:16.3]} 23...
g6 {[%clk 0:04:02.3]} 24. g4 {[%clk 0:04:14.2]} 24... Ke6 {[%clk 0:03:55.2]} 25.
Kg2 {[%clk 0:04:12.2]} 25... f5 {[%clk 0:03:53.8]} 26. gxf5+ {[%clk 0:04:08.6]}
26... gxf5 {[%clk 0:03:50.8]} 27. Kf3 {[%clk 0:04:07]} 27... Nc7 {[%clk
0:03:44.4]} 28. Ng2 {[%clk 0:04:02.5]} 28... Ne8 {[%clk 0:03:40.9]} 29. Nf4+
{[%clk 0:04:00.7]} 29... Bxf4 {[%clk 0:03:39.7]} 30. Kxf4 {[%clk 0:03:59.8]}
30... Kf6 {[%clk 0:03:33.7]} 31. Ne2 {[%clk 0:03:58.8]} 31... Ng7 {[%clk
0:03:30.7]} 32. Ng3 {[%clk 0:03:57.6]} 32... Ne6+ {[%clk 0:03:24.1]} 33. Kf3
{[%clk 0:03:47.5]} 33... Kg5 {[%clk 0:03:22.8]} 34. Ne2 {[%clk 0:03:44.5]} 34...
h5 {[%clk 0:03:20.7]} 35. Kg3 {[%clk 0:03:32.3]} 35... c5 {[%clk 0:02:27.6]} 36.
dxc5 {[%clk 0:03:23.6]} 36... Nxc5 {[%clk 0:02:26.1]} 37. Nf4 {[%clk 0:03:22.5]}
37... Ne4+ {[%clk 0:02:19.9]} 38. Kh3 {[%clk 0:03:14.2]} 38... Nf6 {[%clk
0:01:53.8]} 39. Ne6+ {[%clk 0:03:02.3]} 39... Kg6 {[%clk 0:01:34.2]} 40. Kh4
{[%clk 0:03:00.1]} 40... Kh6 {[%clk 0:01:00.6]} 41. Nf4 {[%clk 0:02:54.8]} 41...
b6 {[%clk 0:00:28.3]} 42. b3 {[%clk 0:02:51.7]} 42... a5 {[%clk 0:00:17.7]} 43.
a4 {[%clk 0:02:49.3]} 43... Ne4 {[%clk 0:00:06.9]} 44. Nxh5 {[%clk 0:02:43.1]}
44... Nc3 {[%clk 0:00:05.1]} 45. Nf4 {[%clk 0:02:39.7]} 45... Nd1 {[%clk
0:00:04.1]} 46. Nxd5 {[%clk 0:02:37.4]} 46... Nf2 {[%clk 0:00:03.1]} 47. Kg3
{[%clk 0:02:34.7]} 47... Ng4 {[%clk 0:00:01.8]} 48. Kf4 {[%clk 0:02:32.6]} 48...
Kg6 {[%clk 0:00:01.4]} 49. Nxb6 {[%clk 0:02:30.7]} 49... Kf6 {[%clk 0:00:00.6]}
50. Nc4 {[%clk 0:02:29.4]} 1-0

[Event "Live Chess"]
[Site "Chess.com"]
[Date "2023.05.20"]
[Round "-"]
[White "LozzaLoaf"]
[Black "WilliamofOrange16th"]
[Result "0-1"]
[WhiteElo "262"]
[BlackElo "1842"]
[TimeControl "300"]
[EndTime "13:44:58 PDT"]
[Termination "WilliamofOrange16th won by checkmate"]

1. d4 {[%clk 0:04:56.3]} 1... d5 {[%clk 0:04:57.7]} 2. Nc3 {[%clk 0:04:52.1]}
2... c6 {[%clk 0:04:56.5]} 3. b3 {[%clk 0:04:49.7]} 3... Nf6 {[%clk 0:04:54.4]}
4. Na4 {[%clk 0:04:46]} 4... b6 {[%clk 0:04:52.9]} 5. c4 {[%clk 0:04:40.2]} 5...
e6 {[%clk 0:04:51.5]} 6. cxd5 {[%clk 0:04:30.8]} 6... exd5 {[%clk 0:04:51.4]} 7.
b4 {[%clk 0:04:21.6]} 7... Bxb4+ {[%clk 0:04:47.9]} 8. Bd2 {[%clk 0:04:17.9]}
8... Qe7 {[%clk 0:04:47]} 9. Bxb4 {[%clk 0:04:07.6]} 9... Qxb4+ {[%clk
0:04:46.9]} 10. Qd2 {[%clk 0:04:04.6]} 10... Qxa4 {[%clk 0:04:35.5]} 11. Nf3
{[%clk 0:03:55.1]} 11... O-O {[%clk 0:04:21.5]} 12. e4 {[%clk 0:03:46.9]} 12...
Nxe4 {[%clk 0:04:05.3]} 13. Ne5 {[%clk 0:03:41.8]} 13... Nxd2 {[%clk 0:04:01.2]}
14. Kxd2 {[%clk 0:03:36.2]} 14... Qxd4+ {[%clk 0:03:49.9]} 15. Nd3 {[%clk
0:03:33.2]} 15... Qxa1 {[%clk 0:03:48.5]} 16. h4 {[%clk 0:03:25.9]} 16... Qxa2+
{[%clk 0:03:46.5]} 17. Ke1 {[%clk 0:03:23.6]} 17... Bf5 {[%clk 0:03:44.9]} 18.
g4 {[%clk 0:03:20.1]} 18... Bxd3 {[%clk 0:03:43.4]} 19. Bxd3 {[%clk 0:03:19.1]}
19... Qa1+ {[%clk 0:03:42.7]} 20. Bb1 {[%clk 0:03:14.9]} 20... Qxb1+ {[%clk
0:03:40.7]} 21. Ke2 {[%clk 0:03:11.5]} 21... Qxh1 {[%clk 0:03:40.6]} 22. f3
{[%clk 0:03:10.2]} 22... a5 {[%clk 0:03:38.4]} 23. Ke3 {[%clk 0:03:08.8]} 23...
a4 {[%clk 0:03:37.9]} 24. h5 {[%clk 0:03:07.3]} 24... a3 {[%clk 0:03:37.8]} 25.
f4 {[%clk 0:03:06.3]} 25... a2 {[%clk 0:03:37.2]} 26. g5 {[%clk 0:03:05.4]}
26... Ra3+ {[%clk 0:03:36.1]} 27. Kd4 {[%clk 0:03:02.1]} 27... c5+ {[%clk
0:03:35.5]} 28. Ke5 {[%clk 0:03:00.7]} 28... Qe4+ {[%clk 0:03:34.1]} 29. Kd6
{[%clk 0:02:58.5]} 29... Qe6+ {[%clk 0:03:33]} 30. Kc7 {[%clk 0:02:56.8]} 30...
Ra7# {[%clk 0:03:31.8]} 0-1

[Event "Live Chess"]
[Site "Chess.com"]
[Date "2023.05.20"]
[Round "-"]
[White "chessfiction"]
[Black "Duke_of_Bebington"]
[Result "1-0"]
[WhiteElo "2404"]
[BlackElo "1576"]
[TimeControl "300"]
[EndTime "13:45:04 PDT"]
[Termination "chessfiction won by resignation"]

1. e4 {[%clk 0:04:58.2]} 1... e5 {[%clk 0:04:59.1]} 2. d4 {[%clk 0:04:58.1]}
2... exd4 {[%clk 0:04:57.3]} 3. c3 {[%clk 0:04:58]} 3... dxc3 {[%clk 0:04:56.1]}
4. Bc4 {[%clk 0:04:53.3]} 4... d6 {[%clk 0:04:48.4]} 5. Nf3 {[%clk 0:04:51.3]}
5... Nf6 {[%clk 0:04:47.9]} 6. Qb3 {[%clk 0:04:50]} 6... Qe7 {[%clk 0:04:33.6]}
7. O-O {[%clk 0:04:47.1]} 7... Be6 {[%clk 0:04:27.5]} 8. Qxb7 {[%clk 0:04:38.1]}
8... cxb2 {[%clk 0:04:16.6]} 9. Bxb2 {[%clk 0:04:30.3]} 9... Bxc4 {[%clk
0:04:03.7]} 10. Qxa8 {[%clk 0:04:27.9]} 10... Nd7 {[%clk 0:03:57.9]} 11. Rc1
{[%clk 0:04:18.3]} 11... Be6 {[%clk 0:03:37.2]} 12. Rxc7 {[%clk 0:04:16.1]}
12... Bg4 {[%clk 0:03:28.2]} 13. Rc8+ {[%clk 0:04:12.8]} 13... Qd8 {[%clk
0:03:25.6]} 14. Rxd8+ {[%clk 0:04:11.9]} 14... Kxd8 {[%clk 0:03:25.5]} 1-0

[Event "Live Chess"]
[Site "Chess.com"]
[Date "2023.05.20"]
[Round "-"]
[White "luckywookie"]
[Black "MaximKris"]
[Result "0-1"]
[WhiteElo "744"]
[BlackElo "1847"]
[TimeControl "300"]
[EndTime "13:45:22 PDT"]
[Termination "MaximKris won by checkmate"]

1. e4 {[%clk 0:04:53.9]} 1... e5 {[%clk 0:04:58.6]} 2. Nf3 {[%clk 0:04:52.9]}
2... Nc6 {[%clk 0:04:57.6]} 3. c3 {[%clk 0:04:49]} 3... Nf6 {[%clk 0:04:55.6]}
4. d3 {[%clk 0:04:46.9]} 4... d6 {[%clk 0:04:52.7]} 5. Bg5 {[%clk 0:04:45.6]}
5... Bg4 {[%clk 0:04:51.3]} 6. h3 {[%clk 0:04:42.6]} 6... h6 {[%clk 0:04:49.6]}
7. Bxf6 {[%clk 0:04:40.7]} 7... Bxf3 {[%clk 0:04:47.7]} 8. Qxf3 {[%clk
0:04:38.6]} 8... Qxf6 {[%clk 0:04:46.2]} 9. Be2 {[%clk 0:04:34.8]} 9... O-O-O
{[%clk 0:04:44.6]} 10. Qg4+ {[%clk 0:04:28.9]} 10... Kb8 {[%clk 0:04:43.4]} 11.
Qf5 {[%clk 0:04:05.4]} 11... Qxf5 {[%clk 0:04:41.4]} 12. exf5 {[%clk 0:04:03.9]}
12... Ne7 {[%clk 0:04:39.4]} 13. g4 {[%clk 0:04:02.5]} 13... f6 {[%clk
0:04:38.2]} 14. f3 {[%clk 0:03:59.4]} 14... Nd5 {[%clk 0:04:37.2]} 15. Nd2
{[%clk 0:03:49]} 15... Nf4 {[%clk 0:04:35.2]} 16. Nb3 {[%clk 0:03:42.9]} 16...
Nxe2 {[%clk 0:04:33.8]} 17. Kxe2 {[%clk 0:03:41.7]} 17... h5 {[%clk 0:04:33.7]}
18. Na5 {[%clk 0:03:32.2]} 18... hxg4 {[%clk 0:04:31.9]} 19. fxg4 {[%clk
0:03:30]} 19... Be7 {[%clk 0:04:31.8]} 20. Kf3 {[%clk 0:03:25.3]} 20... Rh6
{[%clk 0:04:29.6]} 21. b4 {[%clk 0:03:12]} 21... g6 {[%clk 0:04:28.3]} 22. Ke4
{[%clk 0:02:57.2]} 22... d5+ {[%clk 0:04:25.2]} 23. Kf3 {[%clk 0:02:52.7]} 23...
gxf5 {[%clk 0:04:25.1]} 24. gxf5 {[%clk 0:02:51.3]} 24... Rh5 {[%clk 0:04:23.2]}
25. Kg4 {[%clk 0:02:47.7]} 25... Rg5+ {[%clk 0:04:21.9]} 26. Kf3 {[%clk
0:02:44.6]} 26... Rxf5+ {[%clk 0:04:21.1]} 27. Kg4 {[%clk 0:02:43.9]} 27... Rf4+
{[%clk 0:04:20.4]} 28. Kg3 {[%clk 0:02:41.6]} 28... Rg8+ {[%clk 0:04:19.6]} 29.
Kh2 {[%clk 0:02:37.6]} 29... Rf2# {[%clk 0:04:19.5]} 0-1

[Event "Live Chess"]
[Site "Chess.com"]
[Date "2023.05.20"]
[Round "-"]
[White "Singapourfeuj"]
[Black "NAZRIZ1977"]
[Result "1-0"]
[WhiteElo "2242"]
[BlackElo "2050"]
[TimeControl "300"]
[EndTime "13:45:41 PDT"]
[Termination "Singapourfeuj won by resignation"]

1. d4 {[%clk 0:04:57.2]} 1... Nf6 {[%clk 0:04:58.9]} 2. Nf3 {[%clk 0:04:55.4]}
2... d5 {[%clk 0:04:57.9]} 3. c4 {[%clk 0:04:53.8]} 3... g6 {[%clk 0:04:56.9]}
4. Nc3 {[%clk 0:04:49.6]} 4... Bg7 {[%clk 0:04:56]} 5. Bf4 {[%clk 0:04:42]} 5...
O-O {[%clk 0:04:52.7]} 6. e3 {[%clk 0:04:40.8]} 6... c5 {[%clk 0:04:51.7]} 7.
Be2 {[%clk 0:04:39.6]} 7... cxd4 {[%clk 0:04:47.6]} 8. exd4 {[%clk 0:04:36.3]}
8... dxc4 {[%clk 0:04:46.6]} 9. O-O {[%clk 0:04:35.1]} 9... Bg4 {[%clk
0:04:45.1]} 10. h3 {[%clk 0:04:33.4]} 10... Bxf3 {[%clk 0:04:43.8]} 11. Bxf3
{[%clk 0:04:32.6]} 11... Nc6 {[%clk 0:04:43.1]} 12. d5 {[%clk 0:04:29.9]} 12...
Nb4 {[%clk 0:04:37.1]} 13. Qa4 {[%clk 0:04:22.5]} 13... Nd3 {[%clk 0:04:34.5]}
14. Qxc4 {[%clk 0:04:19.6]} 14... Nxb2 {[%clk 0:04:29.6]} 15. Qb5 {[%clk
0:04:17.5]} 15... Rc8 {[%clk 0:04:14.6]} 16. Qxb2 {[%clk 0:04:13.8]} 16... Rxc3
{[%clk 0:04:11.6]} 17. Qxc3 {[%clk 0:04:11.7]} 17... Nxd5 {[%clk 0:04:10.7]} 18.
Qd2 {[%clk 0:04:08.3]} 18... Bxa1 {[%clk 0:04:08.4]} 19. Rxa1 {[%clk 0:04:06.2]}
19... Nxf4 {[%clk 0:04:07.6]} 20. Qxf4 {[%clk 0:04:05]} 1-0

[Event "Live Chess"]
[Site "Chess.com"]
[Date "2023.05.20"]
[Round "-"]
[White "LodeshChess"]
[Black "nigelst"]
[Result "1-0"]
[WhiteElo "1099"]
[BlackElo "1816"]
[TimeControl "300"]
[EndTime "13:45:53 PDT"]
[Termination "LodeshChess won by resignation"]

1. e4 {[%clk 0:04:59.3]} 1... c6 {[%clk 0:04:58.9]} 2. Nf3 {[%clk 0:04:58.2]}
2... d5 {[%clk 0:04:58.5]} 3. d3 {[%clk 0:04:57.7]} 3... dxe4 {[%clk 0:04:56.8]}
4. Ng5 {[%clk 0:04:56.9]} 4... exd3 {[%clk 0:04:50.4]} 5. Bxd3 {[%clk 0:04:56]}
5... h6 {[%clk 0:04:48.2]} 6. Nxf7 {[%clk 0:04:54.9]} 6... Kxf7 {[%clk
0:04:46.2]} 7. Bg6+ {[%clk 0:04:54.5]} 7... Kxg6 {[%clk 0:04:41.6]} 8. Qxd8
{[%clk 0:04:54.1]} 8... Kf7 {[%clk 0:04:31]} 9. Qxc8 {[%clk 0:04:52.6]} 9... Na6
{[%clk 0:04:28.7]} 10. Qxa8 {[%clk 0:04:48.2]} 10... Nb4 {[%clk 0:04:24.9]} 11.
Na3 {[%clk 0:04:43.9]} 11... Nf6 {[%clk 0:04:21.8]} 1-0

[Event "Live Chess"]
[Site "Chess.com"]
[Date "2023.05.20"]
[Round "-"]
[White "stevefairhurst"]
[Black "GEMdzq"]
[Result "0-1"]
[WhiteElo "585"]
[BlackElo "2225"]
[TimeControl "300"]
[EndTime "13:45:57 PDT"]
[Termination "GEMdzq won by checkmate"]

1. e4 {[%clk 0:04:59]} 1... d6 {[%clk 0:04:59.1]} 2. Nf3 {[%clk 0:04:54.7]} 2...
Nf6 {[%clk 0:04:58.4]} 3. Bc4 {[%clk 0:04:53.4]} 3... g6 {[%clk 0:04:57.8]} 4.
Ng5 {[%clk 0:04:51.8]} 4... e6 {[%clk 0:04:56.2]} 5. Qf3 {[%clk 0:04:47.8]} 5...
Bg7 {[%clk 0:04:52.5]} 6. e5 {[%clk 0:04:46.5]} 6... dxe5 {[%clk 0:04:51.3]} 7.
d3 {[%clk 0:04:42.8]} 7... Nc6 {[%clk 0:04:47.1]} 8. Be3 {[%clk 0:04:40.7]} 8...
h6 {[%clk 0:04:44.2]} 9. Ne4 {[%clk 0:04:32.6]} 9... O-O {[%clk 0:04:35.8]} 10.
Nxf6+ {[%clk 0:04:27.4]} 10... Qxf6 {[%clk 0:04:32.9]} 11. Qxf6 {[%clk
0:04:25.6]} 11... Bxf6 {[%clk 0:04:30.8]} 12. Bxh6 {[%clk 0:04:23.7]} 12... Rd8
{[%clk 0:04:29.6]} 13. Nc3 {[%clk 0:04:20.5]} 13... Nd4 {[%clk 0:04:27.4]} 14.
Rc1 {[%clk 0:04:18.1]} 14... c6 {[%clk 0:04:18.6]} 15. Rd1 {[%clk 0:04:14.6]}
15... Nxc2+ {[%clk 0:04:15.4]} 16. Kd2 {[%clk 0:04:10.7]} 16... Nd4 {[%clk
0:04:13]} 17. Ne2 {[%clk 0:04:04.1]} 17... b5 {[%clk 0:04:08.8]} 18. Bb3 {[%clk
0:04:00.1]} 18... Bb7 {[%clk 0:03:56.6]} 19. Nxd4 {[%clk 0:03:58.3]} 19... exd4
{[%clk 0:03:53.7]} 20. Rde1 {[%clk 0:03:57.1]} 20... c5 {[%clk 0:03:50]} 21. Bc2
{[%clk 0:03:53.4]} 21... Kh7 {[%clk 0:03:36.7]} 22. Bf4 {[%clk 0:03:49.4]} 22...
g5 {[%clk 0:03:32.9]} 23. Bg3 {[%clk 0:03:46.1]} 23... Bxg2 {[%clk 0:03:30.5]}
24. Rhg1 {[%clk 0:03:44.2]} 24... Bf3 {[%clk 0:03:29.2]} 25. Bd6 {[%clk
0:03:22.7]} 25... Rxd6 {[%clk 0:03:26.3]} 26. Rg3 {[%clk 0:03:09.1]} 26... g4
{[%clk 0:03:21.3]} 27. Bb3 {[%clk 0:03:00.5]} 27... Bg5+ {[%clk 0:03:12.7]} 28.
Kc2 {[%clk 0:02:56.9]} 28... c4 {[%clk 0:03:11.2]} 29. Bxc4 {[%clk 0:02:52.1]}
29... bxc4 {[%clk 0:03:09.9]} 30. dxc4 {[%clk 0:02:52]} 30... d3+ {[%clk
0:03:09.2]} 31. Kc3 {[%clk 0:02:43.9]} 31... d2 {[%clk 0:03:09.1]} 32. Rd1
{[%clk 0:02:40.1]} 32... Bxd1 {[%clk 0:03:03]} 33. Rxg4 {[%clk 0:02:35.7]} 33...
Bxg4 {[%clk 0:02:57.5]} 34. h3 {[%clk 0:02:32.5]} 34... d1=Q {[%clk 0:02:56.1]}
35. f3 {[%clk 0:02:30.9]} 35... Bd2# {[%clk 0:02:52.7]} 0-1

[Event "Live Chess"]
[Site "Chess.com"]
[Date "2023.05.20"]
[Round "-"]
[White "toog"]
[Black "Delacorta"]
[Result "1-0"]
[WhiteElo "2613"]
[BlackElo "1422"]
[TimeControl "300"]
[EndTime "13:45:57 PDT"]
[Termination "toog won by resignation"]

1. e4 {[%clk 0:04:55.2]} 1... e6 {[%clk 0:04:58.1]} 2. d4 {[%clk 0:04:53.4]}
2... d5 {[%clk 0:04:57.1]} 3. Nd2 {[%clk 0:04:51]} 3... b5 {[%clk 0:04:49.8]} 4.
Bxb5+ {[%clk 0:04:49.3]} 4... Bd7 {[%clk 0:04:48.3]} 5. Bd3 {[%clk 0:04:47.2]}
5... Bc6 {[%clk 0:04:41.3]} 6. e5 {[%clk 0:04:45.4]} 6... Nd7 {[%clk 0:04:37.6]}
7. Ngf3 {[%clk 0:04:43.5]} 7... Ne7 {[%clk 0:04:33.8]} 8. O-O {[%clk 0:04:42.4]}
8... Ng6 {[%clk 0:04:32.7]} 9. Re1 {[%clk 0:04:40.3]} 9... Be7 {[%clk
0:04:31.5]} 10. Nf1 {[%clk 0:04:39.2]} 10... h5 {[%clk 0:04:30.4]} 11. c3 {[%clk
0:04:38]} 11... h4 {[%clk 0:04:20.6]} 12. Qc2 {[%clk 0:04:32.7]} 12... h3 {[%clk
0:04:16.6]} 13. g3 {[%clk 0:04:30.5]} 13... Nh4 {[%clk 0:04:15.7]} 14. gxh4
{[%clk 0:04:28.1]} 14... Bxh4 {[%clk 0:04:14.8]} 15. Ng3 {[%clk 0:04:26.8]}
15... Nxe5 {[%clk 0:03:58.4]} 16. dxe5 {[%clk 0:04:25.2]} 16... d4 {[%clk
0:03:57.5]} 17. Nxd4 {[%clk 0:04:23.4]} 17... Bg2 {[%clk 0:03:50.5]} 18. Be4
{[%clk 0:04:18.7]} 1-0

[Event "Live Chess"]
[Site "Chess.com"]
[Date "2023.05.20"]
[Round "-"]
[White "Jeffaroow"]
[Black "DmitryVasliev"]
[Result "0-1"]
[WhiteElo "468"]
[BlackElo "1668"]
[TimeControl "300"]
[EndTime "13:46:00 PDT"]
[Termination "DmitryVasliev won by resignation"]

1. e4 {[%clk 0:04:45]} 1... d6 {[%clk 0:04:58.9]} 2. Nf3 {[%clk 0:04:44]} 2...
g6 {[%clk 0:04:57.9]} 3. Nc3 {[%clk 0:04:41.8]} 3... Bg7 {[%clk 0:04:55.9]} 4.
d4 {[%clk 0:04:40.9]} 4... c6 {[%clk 0:04:55.4]} 5. Be3 {[%clk 0:04:39.8]} 5...
Nd7 {[%clk 0:04:54.8]} 6. Bd3 {[%clk 0:04:38.7]} 6... a6 {[%clk 0:04:53.7]} 7.
O-O {[%clk 0:04:37.7]} 7... b5 {[%clk 0:04:49.5]} 8. Qd2 {[%clk 0:04:36.2]} 8...
e5 {[%clk 0:04:47.6]} 9. dxe5 {[%clk 0:04:33.8]} 9... dxe5 {[%clk 0:04:46.3]}
10. Be2 {[%clk 0:04:21.5]} 10... Qc7 {[%clk 0:04:44.5]} 11. Rad1 {[%clk
0:04:19.2]} 11... Bf8 {[%clk 0:04:42.8]} 12. a3 {[%clk 0:04:08.7]} 12... f6
{[%clk 0:04:40.7]} 13. g4 {[%clk 0:03:54.4]} 13... Be7 {[%clk 0:04:27.4]} 14. h3
{[%clk 0:03:48.3]} 14... Nf8 {[%clk 0:03:51.8]} 15. g5 {[%clk 0:03:41.6]} 15...
f5 {[%clk 0:03:45.6]} 16. exf5 {[%clk 0:03:39.4]} 16... gxf5 {[%clk 0:03:39.2]}
17. Bc5 {[%clk 0:03:26.4]} 17... Ng6 {[%clk 0:03:32.1]} 18. Bxe7 {[%clk
0:03:24.5]} 18... N8xe7 {[%clk 0:03:19.9]} 19. h4 {[%clk 0:03:10.2]} 19... Nf4
{[%clk 0:02:27.2]} 20. Nxe5 {[%clk 0:03:02.2]} 20... Qxe5 {[%clk 0:02:03.5]} 21.
Qd8+ {[%clk 0:02:59.6]} 21... Kf7 {[%clk 0:02:02.7]} 22. Qb6 {[%clk 0:02:19.6]}
0-1